[Event "Saint Louis Super Swiss 2023"]
[Site "Saint Louis"]
[Date "2023.03.16"]
[Round "7.4"]
[White "Escalante Ramirez, Brian Sebasti"]
[Black "Raja Harshit"]
[Result "0-1"]
[ECO "B50"]
[WhiteElo "2474"]
[BlackElo "2498"]
[Annotator "TA"]
[PlyCount "92"]
[EventDate "2023.03.12"]
[EventType "swiss"]
[EventCountry "USA"]
[TimeControl "5400+30"]

{[%evp 11,92,-2,0,-16,-10,-1,0,-3,-16,-3,12,10,12,14,47,42,45,50,42,48,39,39,47,36,37,42,43,46,45,34,38,12,53,48,36,7,56,0,0,-146,-159,-178,-166,-180,-184,-196,-196,-204,-201,-206,-189,-387,-395,-373,-371,-472,-502,-491,-489,-508,-500,-697,-705,-719,-698,-682,-682,-669,-562,-1316,-1319,-1298,-1239,-1570,-1200,-2285,-2145,-1697,-1122,-29986,-29987,-29987,-29987]} 1. e4 {[%emt 0:05:59]} c5 {[%emt 0:01:54]} 2. Nf3 {[%emt 0:00:05]} d6 {[%emt 0:00:09]} 3. Nc3 {[%emt 0:00:04]} Nf6 {[%emt 0:00:13]} 4. e5 {[%emt 0:00:05]} dxe5 {[%emt 0:00:19]} 5. Nxe5 {[%emt 0:00:03]} a6 {[%emt 0:00:22]} 6. a4 {[%emt 0:00:03]} Qc7 {[%emt 0:01:04]} 7. d4 {[%emt 0:01:01] B50: Sicilian: 2...d6, Miscellaneous.} e6 {[%emt 0:00:05]} 8. Bf4 {[%emt 0:00:05][%cal Oe5g6]} Bd6 {[%emt 0:02:29]} 9. Bg3 {[%emt 0:00:02] The position is equal.} O-O {[%emt 0:02:52]} 10. Qd3 {[%emt 0:00:03] [#]} Nd5 $146 {[%emt 0:12:42] Hoping for ...Nb4.} ({Predecessor:} 10... Nc6 11. Nxc6 Qxc6 12. dxc5 Bxc5 13. Be2 Bd7 14. Bf3 Qb6 15. O-O Rac8 16. Ne4 Bc6 17. Nxf6+ gxf6 {½-½ Nightingale,D (2507)-Yakovlev,O (2397) EU-ch 2019 ct07 email}) 11. Nc4 {[%emt 0:22:08]} Bxg3 {[%emt 0:00:37]} 12. Qxg3 {[%emt 0:01:23] Nxd5 would be deadly.} Qxg3 {[%emt 0:09:47]} 13. hxg3 {[%emt 0:00:03] aiming for Nxd5.} Nxc3 {[%emt 0:01:28]} 14. Nb6 {[%emt 0:05:26]} Ra7 {[%emt 0:01:35] Threatens to win with ...Nd5.} 15. bxc3 {[%emt 0:00:09]} cxd4 {[%emt 0:00:12]} 16. Bd3 {[%emt 0:20:19]} g6 {[%emt 0:06:57]} 17. cxd4 {[%emt 0:08:45]} Nd7 {[%emt 0:00:24]} 18. a5 {[%emt 0:00:01][%cal Ba4a5,Ba5b6][%mdl 32]} Nxb6 {[%emt 0:02:09][%mdl 64] [#] Remove Defender} 19. axb6 {[%emt 0:00:02]} Ra8 {[%emt 0:00:05]} 20. Ke2 {[%emt 0:03:16]} Bd7 {[%emt 0:04:23]} 21. c4 {[%emt 0:07:09]} (21. Be4 $5 {[%cal Re4b7]}) 21... Rac8 {[%emt 0:01:51]} 22. Ke3 {[%emt 0:01:00]} h5 {[%emt 0:01:30]} 23. Ra5 {[%emt 0:02:36]} (23. Be4 $5 {[%cal Re4b7]}) 23... Rfd8 {[%emt 0:04:48]} (23... Kg7 $11 {deserves consideration.}) 24. Rc1 {[%emt 0:04:24]} (24. Rc5 $14) 24... Bc6 $11 {[%emt 0:01:53]} 25. d5 {[%emt 0:07:54] [#] Black converts the advantage convincingly.} Bxd5 $1 $17 {[%emt 0:00:24][%mdl 576] Pin} 26. f3 {[%emt 0:02:23]} (26. c5 Kg7) 26... Kf8 {[%emt 0:02:48]} 27. Rc2 {[%emt 0:05:11]} Bc6 {[%emt 0:00:11]} 28. Kd2 {[%emt 0:00:42]} Rd6 {[%emt 0:01:50]} 29. Kc3 {[%emt 0:00:26]} Bb5 {[%emt 0:04:52]} 30. Rb2 {[%emt 0:01:00]} Ke7 {[%emt 0:03:41]} ({Don't take} 30... Rxb6 31. Kd2 $16) 31. Raxb5 $2 {[%emt 0:01:47]} (31. Ra1) 31... axb5 $19 {[%emt 0:00:09]} 32. Rxb5 {[%emt 0:00:01][%mdl 4096] Endgame KRR-KRB} f5 {[%emt 0:05:00]} 33. c5 {[%emt 0:02:29]} Rd5 {[%emt 0:00:22]} 34. Kc4 {[%emt 0:00:01]} Rcd8 {[%emt 0:00:43]} 35. Bc2 {[%emt 0:00:01]} Rd2 {[%emt 0:00:58][%csl LRc2,LRg2]} 36. Kc3 {[%emt 0:00:01]} Rxg2 {[%emt 0:03:30]} 37. Ra5 {[%emt 0:00:01]} Rb8 {[%emt 0:02:48]} 38. Ra7 {[%emt 0:00:50]} Kf6 {[%emt 0:01:38]} ({Worse is} 38... Rxg3 39. c6 Kd6 40. c7 Rxf3+ 41. Kb4 $17) 39. Ba4 {[%emt 0:01:01]} Rg1 {[%emt 0:02:18]} 40. Kb4 {[%emt 0:01:59]} f4 {[%emt 0:00:49][%mdl 64] Deflection} 41. gxf4 {[%emt 0:00:13]} h4 {[%emt 0:00:04][%cal Bh5h4,Bh4h3,Bh3h2][%mdl 32] ...h3 is the strong threat.} 42. Bb3 {[%emt 0:00:46]} h3 {[%emt 0:00:21]} 43. Ra2 {[%emt 0:00:02]} Rg2 {[%emt 0:00:26]} 44. Ra1 {[%emt 0:00:03]} h2 {[%emt 0:00:36] ( -> ...Rg1)} 45. Re1 {[%emt 0:00:39]} Rg1 {[%emt 0:00:57]} 46. Rxe6+ {[%emt 0:00:04]} Kg7 {[%emt 0:00:16] Weighted Error Value: White=0.66/Black=0.21 (precise)} 0-1

[Event "Saint Louis Super Swiss 2023"]
[Site "Saint Louis"]
[Date "2023.03.16"]
[Round "7.5"]
[White "Dudin, Gleb"]
[Black "Nyzhnyk, Illya"]
[Result "1/2-1/2"]
[ECO "E01"]
[WhiteElo "2469"]
[BlackElo "2654"]
[Annotator "TA"]
[PlyCount "38"]
[EventDate "2023.03.12"]
[EventType "swiss"]
[EventCountry "USA"]
[TimeControl "5400+30"]

{[%evp 9,38,18,40,38,31,21,33,34,18,3,18,7,27,18,19,17,14,0,20,0,4,12,8,8,11,0,0,0,23,0,0]} 1. c4 {[%emt 0:06:45]} e6 {[%emt 0:00:05]} 2. g3 {[%emt 0:01:02]} d5 {[%emt 0:00:05]} 3. Bg2 {[%emt 0:00:08]} Nf6 {[%emt 0:00:04]} 4. d4 {[%emt 0:00:39]} c6 {[%emt 0:00:54]} 5. Nf3 {[%emt 0:04:20]} Bb4+ {[%emt 0:00:37]} 6. Nbd2 {[%emt 0:04:51] E01: Catalan: Early deviations.} dxc4 {[%emt 0:02:00]} 7. O-O {[%emt 0:02:57]} b5 {[%emt 0:00:47]} 8. b3 {[%emt 0:04:58] White is slightly better.} cxb3 {[%emt 0:00:16]} 9. Nxb3 {[%emt 0:00:13]} O-O {[%emt 0:04:36]} 10. Qc2 {[%emt 0:01:04][%mdl 1024] White has compensation.} a5 {[%emt 0:00:55]} 11. Rd1 {[%emt 0:26:43] [#]} Be7 $146 {[%emt 0:02:54]} ({Predecessor:} 11... Qb6 12. Ne5 Nd5 13. e4 Ne7 14. Be3 Qc7 15. Nd3 Ba3 16. Qc3 Nd7 17. Bf4 Bd6 {½-½ Jumabayev,R (2607)-Ghaem Maghami,E (2549) Asia Chess Cup 2016 (8.1)}) 12. Ne5 {[%emt 0:01:40]} Nd5 {[%emt 0:05:34]} 13. e4 {[%emt 0:02:59]} Nb6 {[%emt 0:05:05]} 14. Bf4 {[%emt 0:02:17]} f6 {[%emt 0:03:06]} 15. Nxc6 {[%emt 0:06:54]} Nxc6 {[%emt 0:00:03]} 16. Qxc6 {[%emt 0:00:08] [#] Strongly threatening Bc7.} Bd7 {[%emt 0:00:03]} 17. Qb7 {[%emt 0:00:18]} Bc8 $1 {[%emt 0:02:21]} 18. Qc6 {[%emt 0:01:57] And now Bc7 would win.} Bd7 {[%emt 0:00:05]} 19. Qb7 {[%emt 0:04:42]} Bc8 $1 {[%emt 0:00:37] Weighted Error Value: White=0.08 (flawless) /Black=0.06 (flawless)} 1/2-1/2

[Event "Saint Louis Super Swiss 2023"]
[Site "Saint Louis"]
[Date "2023.03.16"]
[Round "7.6"]
[White "Durarbayli, Vasif"]
[Black "Boros, Denes"]
[Result "1-0"]
[ECO "C64"]
[WhiteElo "2635"]
[BlackElo "2406"]
[Annotator "TA"]
[PlyCount "117"]
[EventDate "2023.03.12"]
[EventType "swiss"]
[EventCountry "USA"]
[TimeControl "5400+30"]

{[%evp 9,117,0,-1,-6,0,0,0,0,0,-23,-8,-27,45,27,25,14,30,25,32,20,29,23,22,25,34,33,25,35,32,6,6,6,7,7,20,9,35,32,41,39,50,41,45,19,19,19,18,27,27,15,26,20,16,20,18,29,29,31,37,37,76,66,58,68,52,49,97,91,138,118,110,116,110,113,209,133,222,127,209,202,194,210,200,173,173,173,217,219,226,218,234,219,463,476,414,380,392,356,624,666,651,635,578,531,781,727,666,629,509,376]} 1. e4 {[%emt 0:00:06]} e5 {[%emt 0:00:07]} 2. Nf3 {[%emt 0:00:20]} Nc6 {[%emt 0:00:08]} 3. Bb5 {[%emt 0:00:17]} Bc5 {[%emt 0:00:06]} 4. Nc3 {[%emt 0:02:16]} Nd4 {[%emt 0:05:40]} 5. Nxd4 {[%emt 0:02:27]} Bxd4 {[%emt 0:01:54]} 6. Ne2 {[%emt 0:03:55] C64: Ruy Lopez: Classical Defence (3...Bc5) except 4 0-0 Nf6.} Bb6 {[%emt 0:03:45]} 7. d4 {[%emt 0:14:35]} c6 {[%emt 0:05:15]} 8. Bc4 {[%emt 0:01:23] [#] The position is equal.} Nf6 $146 {[%emt 0:01:36]} ({Predecessor:} 8... Qh4 9. O-O Nf6 10. f3 d5 11. exd5 O-O 12. dxc6 exd4 13. Kh1 bxc6 14. Qe1 Qxe1 15. Rxe1 {0-1 Rhodes,H-Paffley,D ENG-ch corr England 1953}) 9. Bg5 {[%emt 0:02:33][%cal Bc1g5,Bg5h4,Bh4f2][%mdl 32]} h6 {[%emt 0:05:09]} 10. Bh4 {[%emt 0:01:52]} d6 {[%emt 0:05:10]} (10... exd4 $11 11. Qd3 Qe7) 11. dxe5 {[%emt 0:01:54]} dxe5 {[%emt 0:00:48]} 12. Qxd8+ {[%emt 0:00:07]} Bxd8 {[%emt 0:00:07]} 13. f3 {[%emt 0:00:18]} Rf8 {[%emt 0:13:11]} 14. Bf2 {[%emt 0:05:45]} Bb6 {[%emt 0:02:13]} 15. Nc1 {[%emt 0:01:05]} Nd7 {[%emt 0:03:50]} 16. Nd3 {[%emt 0:02:36]} Bxf2+ {[%emt 0:04:40]} 17. Kxf2 {[%emt 0:00:11]} a5 {[%emt 0:00:04] ...b5 would be deadly.} 18. a4 {[%emt 0:00:35]} b6 {[%emt 0:01:15]} 19. Ra3 {[%emt 0:04:38]} Ke7 {[%emt 0:01:31]} 20. Rc3 {[%emt 0:02:06]} Bb7 {[%emt 0:00:11]} 21. h4 {[%emt 0:11:54]} Rfc8 {[%emt 0:02:21]} 22. g4 {[%emt 0:02:37]} Rc7 {[%emt 0:00:20]} 23. Ke3 {[%emt 0:03:26]} Rac8 {[%emt 0:03:39]} 24. Ra1 {[%emt 0:01:00]} Ra8 {[%emt 0:01:28]} 25. Rg1 {[%emt 0:00:06]} Rh8 {[%emt 0:00:53][%cal Ba8h8,Bh8d8,Bd8d4][%mdl 32]} 26. h5 {[%emt 0:03:37]} f6 {[%emt 0:02:36]} 27. f4 {[%emt 0:01:58]} exf4+ $1 {[%emt 0:04:14]} 28. Nxf4 {[%emt 0:02:17] Hoping for Ng6+.} Ne5 {[%emt 0:00:22]} 29. Be2 {[%emt 0:00:05]} c5 {[%emt 0:06:21]} 30. Rb3 {[%emt 0:00:38]} Rd8 {[%emt 0:00:13]} 31. Rxb6 {[%emt 0:07:21]} Rd4 $1 {[%emt 0:00:09] [#]} 32. Nd5+ $1 {[%emt 0:01:43]} Bxd5 {[%emt 0:02:09]} 33. exd5 {[%emt 0:00:06]} Rxd5 {[%emt 0:01:17]} 34. Rb5 {[%emt 0:00:07]} Kd6 {[%emt 0:04:40]} 35. Rd1 $1 {[%emt 0:02:17]} ({Much worse is} 35. Rxa5 Re7 36. Ra6+ Nc6+ 37. Kf3 Kc7 $11) 35... Rxd1 {[%emt 0:01:58]} 36. Bxd1 $14 {[%emt 0:01:20][%mdl 4096] Endgame KRB-KRN} Re7 {[%emt 0:00:30]} 37. Kf2 {[%emt 0:01:57]} Ra7 {[%emt 0:05:54] Black is on the road to losing.} (37... Nc4 $14) 38. Bf3 {[%emt 0:01:13]} Nc4 {[%emt 0:01:13]} (38... c4 $142) 39. Be2 {[%emt 0:02:58]} Ne5 {[%emt 0:02:26]} 40. Kg3 {[%emt 0:00:06]} Nc6 {[%emt 0:00:32] [#] Threatens to win with ...Nd4.} 41. c3 {[%emt 0:00:33] Repels Nd4} Ne7 {[%emt 0:01:13]} (41... Ne5 $16) 42. Bd3 {[%emt 0:01:34]} Nd5 {[%emt 0:00:42]} (42... Nc6 $16) 43. Be4 {[%emt 0:00:45]} (43. Kf3 $18) 43... Nc7 {[%emt 0:01:14]} (43... Ne3 $16) 44. Rb6+ $18 {[%emt 0:00:36]} Ke5 {[%emt 0:00:08]} 45. Bf5 {[%emt 0:00:34]} Ra6 {[%emt 0:00:34]} 46. Rb7 {[%emt 0:00:29]} Nd5 {[%emt 0:00:52]} 47. Rb5 {[%emt 0:00:48]} ({Resist} 47. Rxg7 $6 Rb6 $16) 47... Kd6 {[%emt 0:00:25] [#]} 48. Be4 $1 {[%emt 0:00:18]} Nc7 {[%emt 0:02:30]} 49. Rb7 {[%emt 0:00:26]} Ne6 {[%emt 0:00:16]} 50. Bf5 {[%emt 0:00:42]} c4 $2 {[%emt 0:00:17]} (50... Nc7 51. Bd3 Ra8 52. Rb6+ Ke7) 51. Bxe6 {[%emt 0:04:55]} Kxe6 {[%emt 0:00:01] KR-KR} 52. Rb5 {[%emt 0:02:58]} Kf7 {[%emt 0:03:15]} 53. Kf4 {[%emt 0:00:02]} g6 $2 {[%emt 0:01:04]} (53... g5+ 54. Kf5 Ra7) 54. Rb7+ {[%emt 0:00:37][%mdl 64] Deflection. White is clearly winning.} Kg8 {[%emt 0:00:03]} 55. hxg6 {[%emt 0:00:06]} Rd6 {[%emt 0:00:09]} 56. Kf5 {[%emt 0:00:13]} Rd5+ {[%emt 0:00:13]} 57. Kxf6 {[%emt 0:01:07] Intending Rb8+ and mate.} Rd6+ {[%emt 0:00:02]} 58. Kf5 {[%emt 0:00:06]} Rd5+ {[%emt 0:00:02]} 59. Ke4 {[%emt 0:02:29] Weighted Error Value: White=0.09 (flawless) /Black=0.22 (precise)} 1-0

[Event "Saint Louis Super Swiss 2023"]
[Site "Saint Louis"]
[Date "2023.03.17"]
[Round "7.7"]
[White "Akobian, Varuzhan"]
[Black "Moradiabadi, Elshan"]
[Result "1/2-1/2"]
[ECO "D38"]
[WhiteElo "2591"]
[BlackElo "2507"]
[Annotator "TA"]
[PlyCount "31"]
[EventDate "2023.03.12"]
[EventType "swiss"]
[EventCountry "USA"]
[TimeControl "5400+30"]

{[%evp 19,31,8,7,0,18,20,27,14,17,0,0,0,0,0]} 1. d4 {[%emt 0:00:27]} Nf6 {[%emt 0:00:04]} 2. c4 {[%emt 0:00:16]} e6 {[%emt 0:00:02]} 3. Nf3 {[%emt 0:02:07]} d5 {[%emt 0:00:04]} 4. Nc3 {[%emt 0:00:20]} Bb4 {[%emt 0:00:05]} 5. cxd5 {[%emt 0:01:06]} exd5 {[%emt 0:00:01]} 6. Bg5 {[%emt 0:00:45]} h6 {[%emt 0:00:06]} 7. Bxf6 {[%emt 0:00:30]} Qxf6 {[%emt 0:00:01]} 8. Qa4+ {[%emt 0:00:14]} Nc6 {[%emt 0:00:01]} 9. e3 {[%emt 0:00:10]} O-O {[%emt 0:00:04]} 10. Be2 {[%emt 0:00:57]} Be6 {[%emt 0:10:24]} 11. a3 {[%emt 0:12:05] D38: Queen's Gambit Declined: Ragozin Defence (4 Nf3 Bb4).} Bd6 {[%emt 0:00:02] 11...Bxc3+ is the fancy move.} 12. Nb5 {[%emt 0:00:39]} Bg4 {[%emt 0:01:50]} 13. O-O {[%emt 0:05:33]} Ne7 {[%emt 0:00:37] The position is equal.} 14. Rfc1 {[%emt 0:04:56]} c6 {[%emt 0:01:02]} 15. Nxd6 {[%emt 0:00:11]} Qxd6 {[%emt 0:00:01] [#]} 16. h3 $146 {[%emt 0:01:16] A rather calm draw.   Weighted Error Value: White=0.07 (flawless) /Black=0.04 (flawless)} ({Predecessor:} 16. b4 a6 17. Qc2 Rfc8 18. Qb2 Rc7 19. a4 Bxf3 20. Bxf3 b6 21. Rc3 Rb8 22. Be2 {½-½ Cyborowski,L (2526)-Kryvoruchko,Y (2701) CZE-chT 1314 2013 (2.2)}) 1/2-1/2

[Event "Saint Louis Super Swiss 2023"]
[Site "Saint Louis"]
[Date "2023.03.17"]
[Round "7.8"]
[White "Antipov, Mikhail Al."]
[Black "Corrales Jimenez, Fidel"]
[Result "1-0"]
[ECO "B90"]
[WhiteElo "2581"]
[BlackElo "2489"]
[Annotator "TA"]
[PlyCount "99"]
[EventDate "2023.03.12"]
[EventType "swiss"]
[EventCountry "USA"]
[TimeControl "5400+30"]

{[%evp 10,99,10,0,0,0,16,20,28,20,26,31,34,27,43,44,102,98,125,100,117,115,172,171,237,227,241,255,259,160,312,322,358,346,341,355,345,268,380,372,467,443,447,452,395,263,285,262,274,261,404,378,367,308,287,220,640,624,762,787,776,774,974,960,900,916,1081,809,802,802,793,770,753,756,756,745,722,679,1266,1222,12832,12832,12840,12840,12841,12841,12836,12835,29977,29978,29979,12839]} 1. e4 {[%emt 0:03:58]} c5 {[%emt 0:00:02]} 2. Nf3 {[%emt 0:00:08]} d6 {[%emt 0:00:06]} 3. d4 {[%emt 0:00:09]} cxd4 {[%emt 0:00:04]} 4. Nxd4 {[%emt 0:00:04]} Nf6 {[%emt 0:00:05]} 5. Nc3 {[%emt 0:00:05]} a6 {[%emt 0:00:04]} 6. a3 {[%emt 0:01:44]} e5 {[%emt 0:04:39] B90: Sicilian Najdorf: Unusual White 6th moves, 6 Be3 Ng4 and 6 Be3 e5.} 7. Nf3 {[%emt 0:02:12][%cal Bd4f3,Bf3d2,Bd2c4,Bc4b6][%mdl 32]} h6 {[%emt 0:01:24] [#]} 8. Nd2 $146 {[%emt 0:01:07]} ({Predecessor:} 8. Bc4 Be6 9. Bb3 Nc6 10. O-O Rc8 11. h3 Be7 12. Nh2 O-O 13. Ng4 Nxg4 14. hxg4 {0-1 Antipov,M (2611)-Nepomniachtchi,I (2784) RUS-ch 73rd Moscow 2020 (4)}) 8... b5 {[%emt 0:06:58][%cal Bb7b5,Bb5b4][%mdl 32] The position is equal.} 9. a4 {[%emt 0:05:27]} b4 {[%emt 0:01:12]} 10. Nd5 {[%emt 0:00:02]} Nxd5 {[%emt 0:00:27]} 11. exd5 {[%emt 0:00:02]} Nd7 {[%emt 0:05:22]} 12. a5 $1 {[%emt 0:01:21]} Bb7 {[%emt 0:07:03] [#] White now steadily converts the win.} (12... Be7 $14) 13. Nc4 $1 $16 {[%emt 0:01:30]} Qh4 {[%emt 0:00:11]} 14. Be2 {[%emt 0:01:39]} Rc8 {[%emt 0:07:58]} 15. Nb6 {[%emt 0:05:00]} Rc7 {[%emt 0:06:44]} (15... Nxb6 $16 {was called for.} 16. axb6 Be7) 16. O-O $18 {[%emt 0:05:49]} Be7 {[%emt 0:11:53]} (16... Qd8 $142 17. Bd2 Be7 18. Bxb4 O-O) 17. Ra4 {[%emt 0:08:22]} O-O {[%emt 0:17:48] [#]} 18. c3 $1 {[%emt 0:07:45][%mdl 512]} f5 {[%emt 0:00:04]} (18... Qf6 19. Rxb4) 19. cxb4 {[%emt 0:02:46]} f4 $2 {[%emt 0:00:40]} (19... Nxb6 $16 20. axb6 Rc4) 20. Nxd7 {[%emt 0:01:27]} Rxd7 {[%emt 0:00:04]} 21. b5 {[%emt 0:00:21]} axb5 {[%emt 0:00:21]} 22. Bxb5 {[%emt 0:00:19][%cal Be2b5,Bb5d7,Bd7g4][%mdl 32]} Rc7 {[%emt 0:00:03]} 23. Be3 {[%emt 0:06:14]} Qg5 {[%emt 0:03:13]} (23... Bc8 $142 24. a6 Bg4) 24. Bb6 {[%emt 0:00:10]} f3 {[%emt 0:00:13][%csl Gf3][%cal Rg5g2]} 25. g3 {[%emt 0:00:22]} (25. Bxc7 $2 Qxg2#) 25... Qh5 {[%emt 0:07:50][%cal Oh5h3] Strongly threatening ...Qh3!} 26. Re1 {[%emt 0:01:40]} (26. Bxc7 $2 {is the wrong capture.} Qh3 $19) 26... Rcc8 {[%emt 0:00:08]} 27. Bd7 {[%emt 0:02:47]} Ba6 {[%emt 0:05:48]} 28. Bg4 {[%emt 0:01:12]} Qe8 {[%emt 0:00:21]} 29. Ra1 {[%emt 0:05:30]} Be2 {[%emt 0:01:26]} (29... Rb8 $142 30. Bxf3 Bd8 31. Bxd8 Qxd8) 30. Rxe2 {[%emt 0:00:13]} fxe2 {[%emt 0:00:01]} 31. Qxe2 {[%emt 0:00:06]} Rb8 {[%emt 0:00:44] Black is weak on the light squares} 32. Be3 {[%emt 0:01:50] This pair of bishops is nice.} Rb3 $2 {[%emt 0:00:39]} (32... Bg5) 33. a6 {[%emt 0:01:30][%cal Ba5a6,Ba6a7][%mdl 32]} Qa8 {[%emt 0:01:41]} 34. a7 {[%emt 0:01:02]} Kh8 {[%emt 0:00:01]} 35. Qc2 {[%emt 0:06:55]} Rxe3 {[%emt 0:04:52]} 36. fxe3 {[%emt 0:00:05]} Bg5 {[%emt 0:00:13]} 37. Qb3 {[%emt 0:00:59]} Kh7 {[%emt 0:00:12]} 38. Bd7 {[%emt 0:01:45]} Rf7 {[%emt 0:00:58]} 39. Bc6 {[%emt 0:06:02]} Rxa7 {[%emt 0:01:38]} 40. Bxa8 {[%emt 0:00:05]} Rxa1+ {[%emt 0:00:03]} 41. Kg2 {[%emt 0:00:14]} Rxa8 {[%emt 0:00:04][%mdl 4096] Endgame KQ-KRB} 42. h4 {[%emt 0:00:35]} Bf6 {[%emt 0:00:46]} 43. Qc4 {[%emt 0:02:01]} e4 {[%emt 0:00:26]} 44. b4 {[%emt 0:00:06][%cal Bb2b4,Bb4b5][%mdl 32]} Kh8 {[%emt 0:02:21]} 45. b5 {[%emt 0:00:15]} Bd8 {[%emt 0:00:11]} 46. Qc6 {[%emt 0:00:16]} Ra2+ {[%emt 0:00:37]} 47. Kh3 {[%emt 0:00:04] White wants to mate with Qc8.} Kh7 {[%emt 0:00:09]} 48. Qxd6 {[%emt 0:00:15]} Bf6 {[%emt 0:00:10]} 49. h5 {[%emt 0:00:25]} Re2 {[%emt 0:00:37]} 50. Qf4 {[%emt 0:00:22] Weighted Error Value: White=0.21 (precise) /Black=0.67} (50. b6 $142 Rb2 51. Kg4 Kg8 52. Qe6+ Kh7 53. Qf5+ Kg8 54. Qc8+ Kf7 55. Qe6+ Kf8 56. b7 {[%mdl 64] Decoy}) 1-0

[Event "Saint Louis Super Swiss 2023"]
[Site "Saint Louis"]
[Date "2023.03.16"]
[Round "7.9"]
[White "Kavutskiy, Konstantin"]
[Black "Daggupati, Balaji"]
[Result "1-0"]
[ECO "D11"]
[WhiteElo "2405"]
[BlackElo "2513"]
[Annotator "TA"]
[PlyCount "63"]
[EventDate "2023.03.12"]
[EventType "swiss"]
[EventCountry "USA"]
[TimeControl "5400+30"]

{[%evp 9,63,12,20,25,32,24,24,31,32,11,8,-20,20,-20,23,0,8,-36,34,0,-12,-22,77,-5,25,0,0,0,0,0,0,0,232,211,231,237,245,258,881,877,841,813,1106,1139,1152,1144,5247,5218,4918,4697,2774,2215,29991,972,2127,1986]} 1. d4 {[%emt 0:08:53]} d5 {[%emt 0:00:05]} 2. c4 {[%emt 0:00:06]} c6 {[%emt 0:00:04]} 3. Nf3 {[%emt 0:00:45]} Nf6 {[%emt 0:00:05]} 4. e3 {[%emt 0:00:09]} Bg4 {[%emt 0:00:06]} 5. h3 {[%emt 0:00:13]} Bh5 {[%emt 0:00:06]} 6. g4 {[%emt 0:01:23] D11: Slav Defence: 3 Nf3 sidelines and 3...Nf6 4 e3 Bg4.} Bg6 {[%emt 0:00:07]} 7. Ne5 {[%emt 0:00:05]} Nbd7 {[%emt 0:00:10]} 8. Nxg6 {[%emt 0:01:14] White has an edge.} hxg6 {[%emt 0:00:09]} 9. Nd2 {[%emt 0:00:30] 9.cxd5 is becoming the main line.} e5 {[%emt 0:00:26]} 10. Bg2 {[%emt 0:13:20] [#]} Bd6 $146 {[%emt 0:00:36]} ({Predecessor:} 10... exd4 11. exd4 dxc4 12. O-O Nb6 13. a4 a5 14. Nxc4 Nxc4 15. Qe2+ Be7 16. Qxc4 Qd6 {1-0 Ahlander,B (2416)-Doknjas,J (2123) Reykjavik op 2017 (2)}) 11. cxd5 {[%emt 0:02:12]} cxd5 {[%emt 0:09:46]} (11... Nxd5 {simplifies} 12. Nc4 Qe7 13. Bxd5 cxd5 14. Nxd6+ Qxd6 15. Bd2 exd4 16. exd4 O-O) 12. dxe5 {[%emt 0:03:18]} Nxe5 {[%emt 0:03:18]} 13. Qa4+ {[%emt 0:02:34]} Nc6 {[%emt 0:06:50]} (13... Kf8 $15) 14. g5 {[%emt 0:03:46]} (14. O-O $14) 14... Nd7 $11 {[%emt 0:12:01] White should prevent ...Nc5.} 15. Bxd5 {[%emt 0:05:32]} Nb4 {[%emt 0:14:49]} (15... O-O $11 {keeps the balance.} 16. Bxc6 bxc6) 16. Ne4 {[%emt 0:12:25]} (16. Bxb7 $16 {Strongly threatening Bg2.} Rb8 17. Bc6 (17. Qxa7 $2 Bc5 $19 {[%mdl 64] Deflection})) 16... Be7 {[%emt 0:17:07]} 17. Qb3 {[%emt 0:03:13]} (17. Bb3 $5 {[%cal Ra2a3]}) 17... Ne5 {[%emt 0:02:04]} 18. Nc3 {[%emt 0:01:24]} (18. Bxb7 $2 Rb8 19. a3 (19. Qa4+ $2 Kf8 $19) 19... Rxb7 20. axb4 Rxb4 $19) 18... Qd7 {[%emt 0:06:28]} 19. a3 $1 {[%emt 0:04:16]} Nbd3+ {[%emt 0:03:00] A dynamic duo of knights.} 20. Ke2 {[%emt 0:01:39] f4 would be deadly.} Qf5 {[%emt 0:00:06] [#]} (20... Bxg5 $2 21. f4 $18) (20... Rxh3 21. Qb5 (21. Bxb7 $2 Qg4+ 22. Kd2 Rd8 $19) 21... Rxh1 22. Bxh1 $14) (20... O-O-O $1 $11 {and Black is okay.}) 21. Qb5+ $1 $18 {[%emt 0:04:05]} (21. Qxb7 $2 {too greedy.} Qxf2+ 22. Kd1 Rd8 $19) ({Don't take} 21. f4 $6 Nxc1+ 22. Raxc1 Qd3+ 23. Kf2 Qd2+ 24. Ne2 Nd3+ 25. Kf3 Rxh3+ 26. Rxh3 Qxe2+ 27. Kxe2 (27. Ke4 Nf2+ 28. Kd4 Qd2+ 29. Ke5 f6+ 30. Ke6 Nxh3 31. gxf6 gxf6 32. Qc3 Nxf4+ 33. exf4 Qe2+) 27... Nxc1+ 28. Kf3 Nxb3 $16) 21... Kf8 {[%emt 0:03:20]} 22. f4 {[%emt 0:00:15] Black must now prevent Be4.} a6 {[%emt 0:10:02]} 23. Qxb7 $40 {[%emt 0:00:33][%mdl 128] White attacks with force.} Nxc1+ $2 {[%emt 0:04:37]} (23... Rd8) 24. Raxc1 {[%emt 0:00:22]} Qd3+ {[%emt 0:00:25]} 25. Kf2 {[%emt 0:00:14]} Qd2+ {[%emt 0:00:18]} 26. Ne2 {[%emt 0:01:13]} Rd8 {[%emt 0:01:23]} 27. Rc8 {[%emt 0:06:20]} Kg8 {[%emt 0:03:15]} 28. Rxd8+ {[%emt 0:01:29]} Bxd8 {[%emt 0:00:05]} 29. fxe5 {[%emt 0:00:13]} Bxg5 {[%emt 0:00:05]} 30. Bxf7+ {[%emt 0:02:32]} Kf8 {[%emt 0:00:10]} 31. Qf3 {[%emt 0:00:31]} (31. Bxg6 $142 Bh4+ 32. Kf3 Be7 33. Rf1 Rh4 34. Kg2+ Rf4 35. Rxf4+ Kg8 36. Qb3+ Kh8 37. Qb8+ Qd8 38. Qxd8+ {[%mdl 64] Remove Defender, Deflection, Back Rank} Bxd8 39. Rf8#) 31... Ke7 {[%emt 0:00:27]} 32. Rc1 {[%emt 0:00:54] A superb game by Kavutskiy.   Weighted Error Value: White=0.17 (very precise) /Black=0.69} ({Less strong is} 32. Bxg6 Rf8 33. Bf5 Bh4+ 34. Kg1 Rxf5 35. Qxf5 Qxe2 $14) 1-0